bitfinex/quotes_SOLUSD_20241216
["timestamp","ask_amount","ask_price","bid_price","bid_amount"]
[1734317297440,7.9462,222.33,222.21,12.58739891]
[1734317298472,7.9462,222.33,222.21,0.67474495]
[1734317298686,0.84341378,222.32,222.21,0.67474495]
[1734317299894,8.7897011,222.33,222.21,0.67474495]
[1734317300488,8.7897011,222.33,222.2,0.5257684]
[1734317300797,11.245,222.32,222.2,0.5257684]
[1734317301097,0.84366263,222.31,222.2,0.5257684]
[1734317301514,6.6003,222.29,222.2,0.5257684]
[1734317301687,0.84373192,222.28,222.2,0.5257684]
[1734317302491,11.2475,222.27,222.2,0.5257684]
[1734317302690,0.84384452,222.26,222.2,0.5257684]
[1734317304492,11.2485,222.25,222.2,0.5257684]
[1734317304699,0.84385303,222.24,222.2,0.5257684]
[1734317305699,1.5754,222.23,222.2,0.5257684]
[1734317306000,1.5754,222.23,222.07,0.6751705]
[1734317306001,7.03913822,222.22,222.07,0.6751705]
[1734317306583,11.2506,222.21,222.03,0.67526035]
[1734317306897,0.8440803,222.2,222.03,0.67526035]
[1734317307287,1.5546,222.19,222.03,0.67526035]
[1734317307487,0.84421028,222.18,221.99,12.58802218]
[1734317308296,0.84421028,222.18,222.05,11.91265396]
[1734317308605,1.5546,222.19,222.07,11.91265396]
[1734317308819,0.84392414,222.18,222.01,0.67513931]
[1734317309021,0.84392414,222.18,222.03,11.91265396]
[1734317309206,0.84392414,222.18,221.99,20.27282213]
[1734317309207,1.5546,222.19,222.07,11.91265396]
[1734317309407,1.5546,222.19,222.08,0.67516885]
[1734317309615,1.5546,222.19,222.09,11.91265396]
[1734317309815,1.5546,222.19,222.11,11.91265396]
[1734317310118,6.1951,222.22,222.12,0.67503248]
[1734317310702,6.1951,222.22,222.12,12.58768644]
[1734317310902,1.5546,222.25,222.14,11.91265396]
[1734317311120,1.5546,222.25,222.15,0.67490147]
[1734317312303,1.5546,222.25,222.15,12.58755543]
[1734317313603,7.6844,222.33,222.2,11.91265396]
[1734317313928,7.6844,222.33,222.22,11.91265396]
[1734317314228,7.6844,222.33,222.23,0.67462541]
[1734317315413,0.84334564,222.4,222.24,11.91265396]
[1734317315619,0.84334564,222.4,222.25,0.67466388]
[1734317315822,0.84332985,222.39,222.25,0.67466388]
[1734317316025,12.0837495,222.42,222.23,19.06392971]
[1734317316628,12.0837495,222.42,222.24,0.67469279]
[1734317317200,12.0837495,222.42,222.22,0.67472615]
[1734317317631,8.1444,222.41,222.22,0.67472615]
[1734317317839,0.84350821,222.4,222.18,19.06392971]
[1734317318126,0.84350821,222.4,222.2,19.06392971]
[1734317318325,0.84350821,222.4,222.21,0.67470774]
[1734317318834,0.84350821,222.4,222.22,19.06392971]
[1734317319128,11.2415,222.39,222.22,19.06392971]
[1734317319324,0.84337905,222.38,222.23,0.67470324]
[1734317319966,0.84337905,222.38,222.24,19.06392971]
[1734317320237,0.84326398,222.4,222.25,0.67461118]
[1734317320607,0.84326398,222.4,222.26,19.06392971]
[1734317322536,12.08456398,222.4,222.23,19.06392971]
[1734317322735,8.11,222.39,222.21,19.06392971]
[1734317322918,0.8434954,222.38,222.21,19.06392971]
[1734317323406,8.11,222.37,222.17,19.73872603]
[1734317323611,0.84356383,222.36,222.17,19.73872603]
[1734317324434,11.2435,222.35,222.17,19.73872603]
[1734317324651,0.84357634,222.34,222.17,19.73872603]
[1734317324944,0.84357634,222.34,222.19,19.06392971]
[1734317325114,0.84357634,222.34,222.2,0.67476017]
[1734317327633,0.84347095,222.36,222.21,19.06392971]
[1734317327840,8.95334542,222.37,222.23,19.06392971]
[1734317328013,8.95334542,222.37,222.24,0.674655]
[1734317331034,0.8433205,222.36,222.24,0.674655]
[1734317331828,0.8433205,222.36,222.21,19.73859661]
[1734317332943,8.11,222.37,222.23,19.06392971]
[1734317333141,8.11,222.37,222.24,0.67463252]
[1734317334413,8.11,222.37,222.25,19.06392971]
[1734317335125,8.11,222.37,222.26,0.67462826]
[1734317335815,1.655,222.37,222.26,0.67462826]
[1734317336015,7.7803,222.42,222.31,19.06392971]
[1734317336238,7.7803,222.42,222.32,0.67445771]
[1734317336620,7.7803,222.42,222.32,19.73838742]
[1734317337639,1.6108,222.42,222.34,19.06392971]
[1734317337839,7.7111,222.47,222.36,19.06392971]
[1734317338016,7.7111,222.47,222.37,0.67427579]
[1734317339028,0.84289468,222.46,222.35,0.67437014]
[1734317339417,0.84297702,222.46,222.35,0.67437014]
[1734317340221,0.84297702,222.46,222.34,0.67436595]
[1734317340623,7.7111,222.47,222.34,0.67436595]
[1734317341033,0.84292172,222.46,222.34,0.67436595]
[1734317341232,0.84292948,222.46,222.34,0.67436595]
[1734317341641,7.7111,222.47,222.34,0.67436595]
[1734317341836,7.7111,222.47,222.35,11.90142604]
[1734317342041,0.84286158,222.46,222.33,12.5757153]
[1734317342231,0.84286158,222.46,222.33,0.67428926]
[1734317342745,7.7111,222.47,222.34,11.90142604]
[1734317343048,7.7111,222.47,222.36,11.90142604]
[1734317343348,7.7111,222.47,222.37,0.67427641]
[1734317344345,7.7111,222.47,222.4,11.90142604]
[1734317344667,6.4786,222.52,222.41,0.67415914]
[1734317345365,6.4786,222.52,222.44,11.90142604]
[1734317345566,6.4786,222.52,222.45,0.67404502]
[1734317346333,0.84269564,222.51,222.38,0.67404073]
[1734317346562,0.84269564,222.51,222.36,11.90142604]
[1734317347060,0.84269564,222.51,222.37,0.67431086]
[1734317348143,12.07859564,222.51,222.34,0.67429689]
[1734317348342,12.07859564,222.51,222.28,34.71754857]
[1734317348343,6.0526,222.49,222.3,0.67435778]
[1734317348664,7.6398,222.47,222.28,11.90142604]
[1734317348839,7.6398,222.47,222.29,0.67452014]
[1734317348840,0.84315017,222.46,222.29,0.67452014]
[1734317349440,12.08145017,222.46,222.29,0.67452014]
[1734317351352,1.5147,222.45,222.27,0.67458476]
[1734317351541,7.9985,222.43,222.23,0.67457633]
[1734317351741,0.84334961,222.42,222.24,11.90142604]
[1734317351946,0.84334961,222.42,222.25,0.6745869]
[1734317354345,11.2405,222.41,222.25,0.6745869]
[1734317354545,11.2405,222.41,222.22,14.61463867]
[1734317354546,1.5147,222.39,222.23,0.67469402]
[1734317354747,0.84341867,222.38,222.23,0.67469402]
[1734317355352,0.84341867,222.38,222.24,11.90142604]
[1734317355554,0.84341867,222.38,222.25,0.67464099]
[1734317357496,0.84324313,222.38,222.26,11.90142604]
[1734317357672,0.84324313,222.38,222.27,0.67459265]
[1734317359776,1.5147,222.39,222.27,0.67459265]
[1734317359777,1.5147,222.39,222.28,11.90142604]
[1734317359971,1.5147,222.39,222.32,11.90142604]
[1734317360576,1.5147,222.39,222.3,11.90142604]
[1734317360762,1.5147,222.39,222.31,0.67448461]
[1734317360945,6.4838,222.43,222.31,0.67448461]
[1734317361151,6.4838,222.43,222.34,11.90142604]
[1734317361372,6.4838,222.43,222.35,0.67431716]
[1734317363564,6.4838,222.43,222.32,19.04814143]
[1734317363565,6.4838,222.43,222.33,0.67438886]
[1734317364049,0.8430716,222.42,222.3,19.72259871]
[1734317365856,12.0831716,222.42,222.25,0.67448192]
[1734317366057,1.5548,222.41,222.25,19.72262335]
[1734317366288,0.84329756,222.4,222.25,19.72262335]
[1734317367888,11.2415,222.39,222.25,0.67448192]
[1734317368200,11.2415,222.39,222.23,19.04814143]
[1734317368201,0.84334871,222.38,222.24,0.67467897]
[1734317368496,6.2356,222.37,222.24,0.67467897]
[1734317368661,0.8434078,222.36,222.22,0.67466572]
[1734317369593,1.5548,222.35,222.22,0.67466572]
[1734317369761,0.84346114,222.34,222.22,0.67466572]
[1734317370393,0.84346114,222.34,222.13,7.5734]
[1734317370394,12.08746114,222.34,222.17,19.72292705]
[1734317370565,6.2356,222.33,222.17,0.67478562]
[1734317370903,6.2356,222.33,222.14,0.67491938]
[1734317370904,1.5763,222.31,222.14,0.67491938]
[1734317371059,1.5763,222.31,222.13,19.04814143]
[1734317371060,0.84374552,222.3,222.11,19.04814143]
[1734317371380,6.1196,222.29,222.11,19.04814143]
[1734317371562,12.09123372,222.28,222.11,19.04814143]
[1734317372182,1.5815,222.27,222.11,0.67509388]
[1734317372362,0.84386963,222.26,222.11,0.67509388]
[1734317373260,19.1772,222.25,222.07,19.04814143]
[1734317373460,0.84400116,222.24,222.07,19.04814143]
[1734317374389,11.2496,222.23,222.07,19.04814143]
[1734317374558,0.84399955,222.22,222.07,19.04814143]
[1734317374864,0.84399955,222.22,222.06,0.67509378]
[1734317375883,11.2506,222.21,222.06,0.67509378]
[1734317376100,0.84406016,222.2,222.06,0.67509378]
[1734317377764,0.84399287,222.24,222.09,19.04814143]
[1734317377966,0.84399287,222.24,222.1,0.67508255]
[1734317378492,0.84399287,222.24,222.11,19.04814143]
[1734317378693,0.84399287,222.24,222.12,0.6750578]
[1734317379204,8.77251794,222.25,222.12,0.6750578]
[1734317379369,7.9287,222.25,222.13,19.04814143]
[1734317379710,7.9287,222.25,222.14,0.67494996]
[1734317380403,7.9287,222.25,222.17,19.04814143]
[1734317380560,7.9287,222.25,222.18,0.67482031]
[1734317382262,7.9287,222.25,222.15,19.72298755]
[1734317383481,7.9287,222.25,222.13,19.04814143]
[1734317383772,0.84376414,222.24,222.12,0.674953]
[1734317384270,7.9287,222.25,222.12,0.674953]
[1734317386112,7.9287,222.25,222.12,12.60168847]
[1734317386475,0.84371976,222.24,222.12,12.60168847]
[1734317386670,7.9287,222.25,222.12,12.60168847]
[1734317389693,0.84376509,222.24,222.12,12.60168847]
[1734317390096,7.9287,222.25,222.12,12.60168847]
[1734317391483,0.84374239,222.24,222.12,0.674953]
[1734317391697,0.84374239,222.24,222.11,0.67505072]
[1734317392709,0.84374239,222.24,222.07,0.67508402]
[1734317393017,6.3662,222.22,222.04,11.92673547]
[1734317393305,0.84410733,222.21,222.04,11.92673547]
[1734317393691,1.636,222.19,222.04,11.92673547]
[1734317393887,0.84410731,222.18,222.04,11.92673547]
[1734317394298,0.84410731,222.18,222.05,0.67528936]
[1734317394505,6.3662,222.17,222.05,0.67528936]
[1734317394691,0.84411223,222.16,222.05,0.67528936]
[1734317394918,0.84411223,222.16,222.03,6.19362307]
[1734317395156,0.84411223,222.16,222.03,0.6752905]
[1734317395348,0.84411223,222.16,222.01,0.67533654]
[1734317395523,6.3662,222.17,222.06,11.92673547]
[1734317395697,6.3662,222.17,222.07,0.67518047]
[1734317396215,6.3662,222.17,222.08,11.92673547]
[1734317396413,6.3662,222.17,222.09,0.67511731]
[1734317397496,1.636,222.19,222.1,11.92673547]
[1734317397808,1.636,222.19,222.11,0.67503729]
[1734317401415,1.636,222.19,222.08,11.92673547]
[1734317401416,1.636,222.19,222.09,0.67513486]
[1734317401987,1.636,222.19,222.1,11.92673547]
[1734317402191,1.636,222.19,222.11,0.67503043]
[1734317402919,1.636,222.19,222.07,9.006]
[1734317402920,1.636,222.19,222.08,0.67501906]
[1734317403427,0.84393926,222.18,222.05,11.92673547]
[1734317403595,0.84393926,222.18,222.06,0.67524301]
[1734317403794,0.84393926,222.18,222.03,12.60201973]
[1734317404411,11.2526,222.17,222.03,0.67528426]
[1734317404622,0.84417352,222.16,222.03,0.67528426]
[1734317404997,0.84417352,222.16,222.02,0.67533748]
[1734317405403,1.6154,222.14,222.02,0.67533748]
[1734317405605,0.84423235,222.13,222.02,0.67533748]
[1734317406116,0.84423235,222.13,221.99,0.67543899]
[1734317406618,0.84423235,222.13,221.99,12.60217446]
[1734317407215,0.84423235,222.13,221.99,0.67543899]
[1734317407421,0.84423235,222.13,221.99,12.60217446]
[1734317407630,1.6154,222.14,222.01,11.92673547]
[1734317407802,1.6154,222.14,221.98,9.5353684]
[1734317407803,2.4595486,222.14,222.02,0.67531888]
[1734317408908,1.6154,222.14,222.04,11.92673547]
[1734317409115,1.6154,222.14,222.05,0.675221]
[1734317409309,2.45946494,222.14,222.05,0.675221]
[1734317409701,2.45946494,222.14,222.02,0.67532722]
[1734317411100,2.45946494,222.14,222.01,0.67536168]
[1734317412009,2.45946494,222.14,221.99,0.67542798]
[1734317413359,11.2546,222.13,221.99,0.67542798]
[1734317413504,11.2546,222.13,221.98,0.5257684]
[1734317413505,0.8444399,222.12,221.98,0.5257684]
[1734317414410,11.2556,222.11,221.98,0.5257684]
[1734317414632,0.84445145,222.1,221.98,0.5257684]
[1734317415529,7.6433,222.09,221.98,0.5257684]
[1734317415719,0.8444677,222.08,221.98,0.5257684]
[1734317416732,7.6433,222.09,221.98,1.20134246]
[1734317416928,0.84436957,222.08,221.98,1.20134246]
[1734317418428,0.84436957,222.08,221.98,0.5257684]
[1734317418614,7.6433,222.09,221.99,0.67550957]
[1734317420723,0.84433997,222.08,221.98,0.5257684]
[1734317420912,0.84433997,222.08,221.98,1.20130489]
[1734317421637,0.84438187,222.08,221.98,0.5257684]
[1734317425334,12.10198187,222.08,221.98,0.5257684]
[1734317429143,1.6603,222.07,221.98,0.5257684]
[1734317429330,0.84461494,222.06,221.98,0.5257684]
[1734317430757,11.2587,222.05,221.98,0.5257684]
[1734317431055,0.84468863,222.04,221.98,0.5257684]
[1734317433226,6.5529,222.03,221.98,0.5257684]
[1734317433542,0.84472915,222.02,221.98,0.5257684]
[1734317433729,12.10512915,222.02,221.98,0.5257684]
[1734317433927,1.6503,222.01,221.98,0.5257684]
[1734317434123,0.8447979,222.0,221.98,0.5257684]
[1734317438855,2.49502099,222.01,221.98,0.5257684]
[1734317439329,1.6503,222.01,221.98,0.5257684]
[1734317439931,0.84462312,222.0,221.98,0.5257684]
[1734317440342,2.49500833,222.01,221.98,0.5257684]
[1734317440766,6.5529,222.03,221.98,0.5257684]
[1734317441262,0.84464481,222.05,221.98,0.5257684]
[1734317444674,1.5361,222.06,221.98,0.5257684]
[1734317445158,6.98888223,222.08,221.98,0.5257684]
[1734317445468,0.84437911,222.1,221.98,0.5257684]
[1734317446342,0.84437911,222.1,221.98,1.20127899]
[1734317446542,0.84437911,222.1,221.98,0.5257684]
[1734317450948,0.84437911,222.1,221.99,1.5094]
[1734317454359,0.84437911,222.1,221.98,0.5257684]
[1734317455375,11.2566,222.09,221.98,0.5257684]
[1734317455558,0.84469427,222.08,221.98,0.5257684]
[1734317456473,11.2577,222.07,221.98,0.5257684]
[1734317456766,0.84470647,222.06,221.98,0.5257684]
[1734317457773,11.2577,222.07,221.98,0.5257684]
[1734317457774,8.98540647,222.07,221.98,0.5257684]
[1734317459600,8.98540647,222.07,221.89,5.51833257]
[1734317459601,5.0,222.06,221.86,1.5677]
[1734317459782,6.236,222.05,221.86,1.5677]
[1734317459978,6.236,222.05,221.87,0.67588601]
[1734317460586,12.8396,222.11,221.9,11.95451107]
[1734317460781,12.8396,222.11,221.91,0.67561748]
[1734317461827,35.3509,222.11,221.89,0.67557776]
[1734317463881,13.49,222.1,221.89,0.67557776]
[1734317464097,11.2566,222.09,221.89,0.67557776]
[1734317464282,11.2566,222.09,221.89,12.63008883]
[1734317466898,11.2566,222.09,221.94,6.2366]
[1734317467191,18.006031,222.12,221.95,2.18586265]
[1734317467719,11.255,222.13,221.95,2.18586265]
[1734317469429,11.255,222.13,221.96,9.0106]
[1734317469629,11.255,222.13,221.97,0.67547697]
[1734317472808,11.255,222.13,221.95,1.5103]
[1734317473903,16.255,222.13,221.95,1.5103]
[1734317474112,5.0,222.1,221.95,1.5103]
[1734317474303,1.616,222.07,221.95,1.5103]
[1734317475373,5.0,222.06,221.95,1.5103]
[1734317475692,11.2587,222.05,221.95,1.5103]
[1734317476371,11.2587,222.05,221.86,7.9713]
[1734317476775,11.2587,222.05,221.87,0.67586961]
[1734317477482,33.7761,222.05,221.87,0.67586961]
[1734317477679,33.7761,222.05,221.87,0.67582536]
[1734317478767,11.2602,222.02,221.87,8.32768991]
[1734317478985,11.2602,222.02,221.87,0.67582536]
[1734317479395,11.2602,222.02,221.87,8.32768991]
[1734317480594,22.5174,222.06,221.87,8.32768991]
[1734317480595,11.2585,222.06,221.89,7.65186455]
[1734317480895,11.2585,222.06,221.9,0.67572711]
[1734317481372,11.2585,222.06,221.91,8.0412]
[1734317481695,33.7669,222.11,221.91,8.0412]
[1734317482282,2.66509528,222.06,221.91,8.0412]
[1734317482774,11.2587,222.05,221.91,8.0412]
[1734317485984,33.7684,222.1,221.92,0.67574257]
[1734317486382,33.7684,222.1,221.92,8.32760712]
[1734317486591,11.2561,222.1,221.92,8.32760712]
[1734317486903,11.2561,222.1,221.93,1.5422]
[1734317487396,2.72875392,222.09,221.93,1.5422]
[1734317488303,11.2572,222.08,221.93,1.5422]
[1734317491001,52.2616,222.08,221.93,1.5422]
[1734317491200,5.0,222.07,221.93,1.5422]
[1734317491999,18.49,222.08,221.93,1.5422]
[1734317492206,5.0,222.04,221.93,1.5422]
[1734317492427,18.49,222.04,221.93,1.5422]
[1734317493300,13.49,222.01,221.87,1.6466]
[1734317494085,33.7837,222.0,221.87,1.6466]
[1734317494510,5.0,221.99,221.8,1.604]
[1734317494721,47.2737,222.0,221.8,1.604]
[1734317494722,33.7837,222.0,221.8,1.604]
[1734317495183,5.0,221.99,221.8,6.2802]
[1734317495383,33.7837,222.0,221.8,6.2802]
[1734317495384,5.0,221.96,221.8,6.2802]
[1734317495584,10.0,221.95,221.8,6.2802]
[1734317495795,10.0,221.97,221.8,6.2802]
[1734317496013,14.4991479,221.97,221.8,6.2802]
[1734317496394,33.7897,221.96,221.8,6.2802]
[1734317496791,47.2797,221.96,221.8,6.2802]
[1734317497384,52.2797,221.96,221.8,6.2802]
[1734317497614,47.2797,221.96,221.8,6.2802]
[1734317497808,33.7897,221.96,221.8,6.2802]
[1734317498022,33.7897,221.96,221.81,1.6051]
[1734317500630,2.75425994,221.93,221.81,1.6051]
[1734317501123,14.01945994,221.93,221.81,1.6051]
[1734317501808,20.29965994,221.93,221.81,1.6051]
[1734317502338,19.79965994,221.93,221.81,1.6051]
[1734317503221,11.2652,221.93,221.81,1.6051]
[1734317509644,6.2802,221.97,221.81,1.6051]
[1734317509645,17.543,221.97,221.81,1.6051]
[1734317509818,11.2628,221.97,221.81,1.6051]
[1734317510014,11.2628,221.97,221.82,8.2185]
[1734317510243,14.0207198,221.97,221.82,8.2185]
[1734317510914,22.5225,222.0,221.83,8.36819826]
[1734317511111,11.2607,222.01,221.83,8.36819826]
[1734317511461,11.2607,222.01,221.85,6.1785]
[1734317511763,11.2607,222.01,221.86,2.18955042]
[1734317512419,11.2607,222.01,221.86,1.5137]
[1734317521639,13.49,222.0,221.86,1.5137]
[1734317521823,33.7852,221.99,221.86,1.5137]
[1734317523655,13.49,221.98,221.86,1.5137]
[1734317523849,11.2627,221.97,221.86,1.5137]
[1734317531657,4.4991479,222.01,221.86,1.5137]
[1734317531658,15.7602479,222.01,221.86,1.5137]
[1734317531865,15.7602479,222.01,221.84,7.65426725]
[1734317531866,11.2611,222.01,221.88,8.2097]
[1734317532045,11.259,222.05,221.89,0.67574147]
[1734317532237,11.259,222.05,221.9,8.2097]
[1734317533344,11.259,222.05,221.91,1.6049]
[1734317533864,22.5143,222.09,221.91,1.6049]
[1734317534369,22.5143,222.09,221.91,2.28058076]
[1734317534758,33.7709,222.09,221.92,8.1891]
[1734317535991,11.2577,222.07,221.92,8.1891]
[1734317537376,33.7731,222.07,221.92,8.1891]
[1734317538455,11.2577,222.07,221.92,8.1891]
[1734317543767,11.2587,222.05,221.93,7.6888]
[1734317543971,11.257,222.09,221.96,1.5554]
[1734317544299,11.257,222.09,221.97,7.5161]
[1734317544491,11.257,222.09,221.99,1.502]
[1734317545012,11.257,222.09,222.0,6.0141]
[1734317545293,11.255,222.13,222.0,6.68956857]
[1734317545493,11.255,222.13,222.01,1.502]
[1734317547369,11.2521,222.18,222.01,1.502]
[1734317547763,2.73818319,222.17,222.01,1.502]
[1734317548370,11.2531,222.16,222.01,1.502]
[1734317550316,33.7594,222.16,222.01,1.502]
[1734317551790,47.2494,222.16,222.01,1.502]
[1734317551993,13.49,222.14,222.01,1.502]
[1734317552193,13.49,222.12,222.01,1.502]
[1734317552401,13.49,222.07,221.84,7.65426725]
[1734317553321,47.2646,222.06,221.84,7.65426725]
[1734317554507,47.2646,222.06,221.83,3.32161987]
[1734317554705,47.2646,222.06,221.83,10.97588712]
[1734317555292,47.2646,222.06,221.84,7.6661]
[1734317555493,47.2646,222.06,221.86,1.6096]
[1734317555721,47.2646,222.06,221.86,7.6661]
[1734317556313,51.73448839,222.06,221.86,7.6661]
[1734317559333,2.66692262,222.03,221.86,7.6661]
[1734317559496,11.2602,222.02,221.86,7.6661]
[1734317561333,18.9263,222.02,221.86,7.6661]
[1734317561836,18.9263,222.02,221.83,7.65426725]
[1734317561837,18.9263,222.02,221.88,6.2043]
[1734317562008,11.2602,222.02,221.91,1.5536]
[1734317562942,22.5164,222.06,221.91,1.5536]
[1734317563242,7.654267,222.04,221.93,1.5536]
[1734317563602,25.20304958,222.06,221.93,1.5536]
[1734317563804,6.2043,222.05,221.93,1.5536]
[1734317564726,11.2592,222.04,221.93,1.5536]
[1734317566245,33.7654,222.12,221.95,1.5399]
[1734317566452,6.2043,222.09,221.95,1.5399]
[1734317567312,11.2572,222.08,221.95,1.5399]
[1734317568924,22.5103,222.12,221.95,1.5399]
[1734317568925,33.7654,222.12,221.95,1.5399]
[1734317569250,14.671973,222.11,221.95,1.5399]
[1734317569947,11.2561,222.1,221.95,1.5399]
[1734317570644,47.2584,222.1,221.95,1.5399]
[1734317572740,51.72828839,222.1,221.95,1.5399]
[1734317577803,38.23828839,222.1,221.95,1.5399]
[1734317578089,33.7684,222.1,221.95,1.5399]
[1734317578451,11.2561,222.1,221.96,6.0647]
[1734317578646,11.2561,222.1,221.97,1.6328]
[1734317579598,11.2561,222.1,221.98,6.1263]
[1734317584380,33.7684,222.1,221.98,6.1263]
[1734317586490,36.4990476,222.1,221.98,6.1263]
[1734317588612,13.49,222.09,221.98,6.1263]
[1734317588790,11.2572,222.08,221.98,6.1263]
[1734317598690,11.2582,222.06,221.98,6.1263]
[1734317601199,24.7482,222.06,221.97,1.6328]
[1734317601398,24.7482,222.06,221.87,0.67566588]
[1734317601399,24.7482,222.06,221.8,9.44858717]
[1734317601612,5.0,222.05,221.78,6.97016265]
[1734317601811,13.49,222.04,221.77,6.97016265]
[1734317602039,13.49,222.02,221.76,7.49593105]
[1734317602342,13.49,222.0,221.76,0.5257684]
[1734317602881,33.7852,221.99,221.76,0.5257684]
[1734317603003,1.5662,221.98,221.76,2.29554392]
[1734317603209,6.03608839,221.98,221.76,0.5257684]
[1734317604312,11.2627,221.97,221.77,7.7308]
[1734317608207,33.7882,221.97,221.77,7.7308]
[1734317608549,39.8425,221.97,221.77,7.7308]
[1734317610010,39.8425,221.97,221.78,7.65426725]
[1734317610217,39.8425,221.97,221.78,8.330415]
[1734317610415,33.7882,221.97,221.78,8.330415]
[1734317611358,11.2627,221.97,221.79,7.65426725]
[1734317611644,11.2627,221.97,221.8,0.67599661]
[1734317611821,11.2627,221.97,221.8,8.33026386]
[1734317612028,11.2627,221.97,221.84,6.1699]
[1734317612219,11.2609,222.01,221.85,0.67586704]
[1734317612533,11.2609,222.01,221.85,8.33013429]
[1734317613770,11.2609,222.01,221.85,0.67586704]
[1734317618044,11.2609,222.01,221.84,6.1699]
[1734317625053,11.2609,222.01,221.83,1.6009]
[1734317625054,11.2617,221.99,221.83,1.6009]
[1734317625281,11.2617,221.99,221.84,0.67598862]
[1734317625457,11.2617,221.99,221.84,8.33025587]
[1734317626457,11.2617,221.99,221.84,0.67598862]
[1734317627690,11.2617,221.99,221.83,1.6009]
[1734317631894,11.2617,221.99,221.78,8.1414]
[1734317631895,6.435,221.97,221.78,8.1414]
[1734317632489,6.435,221.97,221.79,0.67603243]
[1734317632716,6.435,221.97,221.81,7.65426725]
[1734317632897,6.435,221.97,221.82,0.6759387]
[1734317635018,6.435,221.97,221.82,8.33020595]
[1734317635204,6.435,221.97,221.83,7.65426725]
[1734317635387,6.435,221.97,221.84,0.67584967]
[1734317642707,6.435,221.97,221.82,9.0162]
[1734317643353,6.435,221.97,221.81,0.67593827]
[1734317643714,6.435,221.97,221.79,0.6759573]
[1734317645647,6.435,221.97,221.8,7.65426725]
[1734317645827,6.435,221.97,221.81,0.67595083]
[1734317646764,11.2632,221.96,221.81,0.67595083]
[1734317650463,11.2632,221.96,221.83,7.65426725]
[1734317650663,6.435,221.97,221.84,0.67589709]
[1734317654272,6.435,221.97,221.82,7.65426725]
[1734317654273,17.6979,221.97,221.79,0.67589098]
[1734317656156,11.2637,221.95,221.79,0.67589098]
[1734317663465,11.2648,221.93,221.76,1.20179581]
[1734317663666,11.2648,221.93,221.76,0.5257684]
[1734317664480,11.2648,221.93,221.76,8.18003565]
[1734317664680,11.2648,221.93,221.78,7.65426725]
[1734317664882,8.2823,221.94,221.81,7.65426725]
[1734317665080,8.2823,221.94,221.82,8.33018345]
[1734317665598,8.2823,221.94,221.82,0.6759162]
[1734317665808,8.2823,221.94,221.82,8.33018345]
[1734317666011,8.2823,221.94,221.82,0.6759162]
[1734317667978,8.2823,221.94,221.82,8.33018345]
[1734317668180,8.2823,221.94,221.84,7.65426725]
[1734317668377,8.2823,221.94,221.85,0.67581236]
[1734317669405,8.2823,221.94,221.82,0.67582466]
[1734317669996,8.2823,221.94,221.82,8.33009191]
[1734317672109,8.2823,221.94,221.82,0.67582466]
[1734317672304,8.2823,221.94,221.81,0.67596001]
[1734317673901,8.2823,221.94,221.82,7.65426725]
[1734317674107,8.2823,221.94,221.83,0.67587979]
[1734317675311,8.2823,221.94,221.84,7.65426725]
[1734317676029,8.2823,221.94,221.83,0.67587979]
[1734317676902,8.2823,221.94,221.82,7.65426725]
[1734317677118,8.2823,221.94,221.83,0.6759441]
[1734317680900,8.2823,221.94,221.83,8.33021135]
[1734317682323,8.2823,221.94,221.85,7.65426725]
[1734317682501,1.6285,221.94,221.89,7.65426725]
[1734317682704,1.6285,221.94,221.9,0.67572012]
[1734317682925,7.9142,221.99,221.9,0.67572012]
[1734317683124,7.9142,221.99,221.91,7.65426725]
[1734317684926,7.9142,221.99,221.9,8.32998737]
[1734317686193,7.9142,221.99,221.92,7.65426725]
[1734317686421,7.9142,221.99,221.93,7.65426725]
[1734317686627,7.9142,221.99,221.91,0.67566688]
[1734317686628,7.9142,221.99,221.92,7.65426725]
[1734317689164,7.9142,221.99,221.91,8.32993571]
[1734317689321,7.9142,221.99,221.89,7.65426725]
[1734317689515,7.9142,221.99,221.9,7.65426725]
[1734317693744,7.9142,221.99,221.89,7.65426725]
[1734317694643,7.9142,221.99,221.93,7.65426725]
[1734317694847,7.9142,221.99,221.95,7.65426725]
[1734317694848,1.6317,221.99,221.95,7.65426725]
[1734317695016,1.5052,222.04,221.97,7.65426725]